[Event "Titled Tuesday Blitz November 22 Late 2022"]
[White "Tanenbaum, Zachary"]
[Black "Musovic, Armin"]
[WhiteFideId "2060850"]
[BlackFideId "939935"]
[WhiteElo "2175"]
[BlackElo "2288"]
[Result "1-0"]
[Round "07"]
[TimeControl "180+1"]
[Date "2022.11.23"]
[WhiteClock "0:00:10"]
[BlackClock "0:00:05"]

1. e4 {[%clk 0:03:00]}  c6 {[%clk 0:02:57]} 2. d4 {[%clk 0:03:00]}  d5 {[%clk 0:02:58]} 3. exd5 {[%clk 0:03:01]}  cxd5 {[%clk 0:02:59]} 4. Bd3 {[%clk 0:03:01]}  Nc6 {[%clk 0:03:00]} 5. c3 {[%clk 0:03:02]}  Nf6 {[%clk 0:03:01]} 6. Bf4 {[%clk 0:03:02]}  g6 {[%clk 0:03:01]} 7. Nf3 {[%clk 0:03:01]}  Bg7 {[%clk 0:03:02]} 8. O-O {[%clk 0:03:01]}  O-O {[%clk 0:03:03]} 9. Nbd2 {[%clk 0:03:01]}  Re8 {[%clk 0:03:03]} 10. Re1 {[%clk 0:02:58]}  Nd7 {[%clk 0:03:04]} 11. h3 {[%clk 0:02:54]}  f6 {[%clk 0:03:03]} 12. c4 {[%clk 0:02:53]}  e6 {[%clk 0:03:03]} 13. Rc1 {[%clk 0:02:51]}  Nb6 {[%clk 0:03:02]} 14. c5 {[%clk 0:02:41]}  Nd7 {[%clk 0:03:01]} 15. Bd6 {[%clk 0:02:38]}  e5 {[%clk 0:02:59]} 16. dxe5 {[%clk 0:02:38]}  Ndxe5 {[%clk 0:02:59]} 17. Bb5 {[%clk 0:02:28]}  a6 {[%clk 0:02:55]} 18. Ba4 {[%clk 0:02:28]}  Be6 {[%clk 0:02:51]} 19. Nxe5 {[%clk 0:02:20]}  fxe5 {[%clk 0:02:49]} 20. Bxc6 {[%clk 0:02:17]}  bxc6 {[%clk 0:02:50]} 21. Bxe5 {[%clk 0:02:17]}  Bh6 {[%clk 0:02:51]} 22. Rc3 {[%clk 0:02:08]}  Qa5 {[%clk 0:02:42]} 23. a3 {[%clk 0:01:42]}  Bf5 {[%clk 0:02:22]} 24. Nb3 {[%clk 0:01:39]}  Qa4 {[%clk 0:02:19]} 25. Qd4 {[%clk 0:01:13]}  Qxd4 {[%clk 0:02:11]} 26. Nxd4 {[%clk 0:01:13]}  Bd7 {[%clk 0:01:41]} 27. Rb3 {[%clk 0:01:04]}  Bf4 {[%clk 0:01:27]} 28. Nf3 {[%clk 0:01:03]}  Bh6 {[%clk 0:01:17]} 29. Rb7 {[%clk 0:01:01]}  Bf5 {[%clk 0:01:14]} 30. Bc3 {[%clk 0:00:53]}  Rxe1+ {[%clk 0:01:11]} 31. Nxe1 {[%clk 0:00:54]}  Be4 {[%clk 0:01:08]} 32. Bd4 {[%clk 0:00:46]}  Re8 {[%clk 0:01:07]} 33. Kf1 {[%clk 0:00:36]}  a5 {[%clk 0:00:49]} 34. Nf3 {[%clk 0:00:30]}  Bd3+ {[%clk 0:00:43]} 35. Kg1 {[%clk 0:00:30]}  Re4 {[%clk 0:00:43]} 36. Rb8+ {[%clk 0:00:23]}  Bf8 {[%clk 0:00:40]} 37. Be5 {[%clk 0:00:19]}  Kf7 {[%clk 0:00:11]} 38. Ng5+ {[%clk 0:00:18]}  Ke7 {[%clk 0:00:11]} 39. Nxe4 {[%clk 0:00:19]}  Bh6 {[%clk 0:00:09]} 40. Bd6+ {[%clk 0:00:19]}  Kd7 {[%clk 0:00:08]} 41. Nf6+ {[%clk 0:00:18]}  Ke6 {[%clk 0:00:09]} 42. Nxh7 {[%clk 0:00:18]}  Bc1 {[%clk 0:00:09]} 43. b4 {[%clk 0:00:17]}  axb4 {[%clk 0:00:09]} 44. axb4 {[%clk 0:00:18]}  Bd2 {[%clk 0:00:09]} 45. g4 {[%clk 0:00:18]}  d4 {[%clk 0:00:09]} 46. Re8+ {[%clk 0:00:16]}  Kd5 {[%clk 0:00:09]} 47. Nf6+ {[%clk 0:00:16]}  Kc4 {[%clk 0:00:09]} 48. Be5 {[%clk 0:00:15]}  Bc3 {[%clk 0:00:09]} 49. Rd8 {[%clk 0:00:15]}  Be2 {[%clk 0:00:08]} 50. Ne4 {[%clk 0:00:14]}  Bb2 {[%clk 0:00:07]} 51. Nd2+ {[%clk 0:00:14]}  Kxb4 {[%clk 0:00:07]} 52. Bxd4 {[%clk 0:00:14]}  Bc1 {[%clk 0:00:07]} 53. Be3 {[%clk 0:00:13]}  Kb5 {[%clk 0:00:05]} 54. Rb8+ {[%clk 0:00:13]}  Ka4 {[%clk 0:00:05]} 55. Ne4 {[%clk 0:00:12]}  Ba3 {[%clk 0:00:03]} 56. Nc3+ {[%clk 0:00:13]}  Ka5 {[%clk 0:00:03]} 57. Nxe2 {[%clk 0:00:12]}  Bxc5 {[%clk 0:00:04]} 58. Bxc5 {[%clk 0:00:12]}  g5 {[%clk 0:00:05]} 59. Nd4 {[%clk 0:00:10]}  Ka4 {[%clk 0:00:05]} 60. Ra8# {[%clk 0:00:10]} 1-0


[Site "https://www.chess.com"]

[Event "Titled Tuesday Blitz November 22 Late 2022"]
[White "Thomas, Anysia"]
[Black "Polster, Christian"]
[WhiteFideId "670472"]
[BlackFideId "12965081"]
[WhiteElo "2069"]
[BlackElo "2209"]
[Result "1/2-1/2"]
[Round "07"]
[TimeControl "180+1"]
[Date "2022.11.23"]
[WhiteClock "0:00:17"]
[BlackClock "0:00:16"]

1. d4 {[%clk 0:03:00]}  d5 {[%clk 0:02:57]} 2. c4 {[%clk 0:03:00]}  e6 {[%clk 0:02:57]} 3. Nf3 {[%clk 0:03:00]}  c6 {[%clk 0:02:56]} 4. g3 {[%clk 0:03:00]}  Nf6 {[%clk 0:02:54]} 5. Bg2 {[%clk 0:02:59]}  Bd6 {[%clk 0:02:45]} 6. O-O {[%clk 0:02:58]}  O-O {[%clk 0:02:44]} 7. b3 {[%clk 0:02:56]}  Nbd7 {[%clk 0:02:43]} 8. Bb2 {[%clk 0:02:56]}  h6 {[%clk 0:02:43]} 9. Qc2 {[%clk 0:02:56]}  Ne4 {[%clk 0:02:41]} 10. Nbd2 {[%clk 0:02:55]}  f5 {[%clk 0:02:23]} 11. Ne5 {[%clk 0:02:51]}  Nxe5 {[%clk 0:02:17]} 12. dxe5 {[%clk 0:02:51]}  Bb4 {[%clk 0:01:45]} 13. Nxe4 {[%clk 0:02:50]}  fxe4 {[%clk 0:01:36]} 14. Rad1 {[%clk 0:02:49]}  Qe7 {[%clk 0:01:30]} 15. f3 {[%clk 0:02:45]}  exf3 {[%clk 0:01:18]} 16. exf3 {[%clk 0:02:44]}  Bd7 {[%clk 0:01:12]} 17. f4 {[%clk 0:02:39]}  a5 {[%clk 0:01:03]} 18. Kh1 {[%clk 0:02:21]}  a4 {[%clk 0:00:53]} 19. Qd3 {[%clk 0:02:07]}  axb3 {[%clk 0:00:47]} 20. axb3 {[%clk 0:02:08]}  Ra2 {[%clk 0:00:47]} 21. Bd4 {[%clk 0:01:56]}  c5 {[%clk 0:00:38]} 22. Bf2 {[%clk 0:01:50]}  dxc4 {[%clk 0:00:11]} 23. Qxd7 {[%clk 0:01:27]}  Qxd7 {[%clk 0:00:12]} 24. Rxd7 {[%clk 0:01:27]}  cxb3 {[%clk 0:00:12]} 25. Be4 {[%clk 0:01:25]}  c4 {[%clk 0:00:11]} 26. Rxb7 {[%clk 0:01:08]}  Ba3 {[%clk 0:00:08]} 27. h3 {[%clk 0:01:02]}  Rc8 {[%clk 0:00:07]} 28. f5 {[%clk 0:01:00]}  c3 {[%clk 0:00:06]} 29. Rxb3 {[%clk 0:00:58]}  c2 {[%clk 0:00:06]} 30. Bxc2 {[%clk 0:00:57]}  Rcxc2 {[%clk 0:00:06]} 31. Rf3 {[%clk 0:00:56]}  exf5 {[%clk 0:00:06]} 32. Rxf5 {[%clk 0:00:56]}  Be7 {[%clk 0:00:06]} 33. e6 {[%clk 0:00:54]}  Kh7 {[%clk 0:00:06]} 34. Kg2 {[%clk 0:00:53]}  Kg6 {[%clk 0:00:05]} 35. Rf3 {[%clk 0:00:52]}  Bc5 {[%clk 0:00:04]} 36. h4 {[%clk 0:00:52]}  h5 {[%clk 0:00:04]} 37. Rf4 {[%clk 0:00:14]}  Re2 {[%clk 0:00:04]} 38. Rf7 {[%clk 0:00:13]}  Rxe6 {[%clk 0:00:04]} 39. Rc7 {[%clk 0:00:10]}  Bxf2 {[%clk 0:00:03]} 40. Rxf2 {[%clk 0:00:11]}  Rxf2+ {[%clk 0:00:04]} 41. Kxf2 {[%clk 0:00:12]}  Rf6+ {[%clk 0:00:04]} 42. Kg2 {[%clk 0:00:12]}  Rd6 {[%clk 0:00:04]} 43. Rc5 {[%clk 0:00:12]}  Rd2+ {[%clk 0:00:04]} 44. Kf3 {[%clk 0:00:13]}  Rd3+ {[%clk 0:00:04]} 45. Kf4 {[%clk 0:00:13]}  Ra3 {[%clk 0:00:03]} 46. Rg5+ {[%clk 0:00:13]}  Kh6 {[%clk 0:00:03]} 47. Rd5 {[%clk 0:00:13]}  Ra4+ {[%clk 0:00:03]} 48. Kf3 {[%clk 0:00:13]}  g6 {[%clk 0:00:03]} 49. Rd7 {[%clk 0:00:12]}  Ra3+ {[%clk 0:00:03]} 50. Kg2 {[%clk 0:00:12]}  Ra4 {[%clk 0:00:03]} 51. Kh3 {[%clk 0:00:12]}  Rg4 {[%clk 0:00:03]} 52. Rd8 {[%clk 0:00:11]}  Kg7 {[%clk 0:00:03]} 53. Ra8 {[%clk 0:00:11]}  Kf6 {[%clk 0:00:03]} 54. Ra7 {[%clk 0:00:12]}  Re4 {[%clk 0:00:01]} 55. Ra6+ {[%clk 0:00:13]}  Re6 {[%clk 0:00:02]} 56. Ra5 {[%clk 0:00:13]}  Re5 {[%clk 0:00:02]} 57. Ra2 {[%clk 0:00:13]}  Kf5 {[%clk 0:00:03]} 58. Rg2 {[%clk 0:00:13]}  Re3 {[%clk 0:00:03]} 59. Rg1 {[%clk 0:00:14]}  Ke4 {[%clk 0:00:03]} 60. Rf1 {[%clk 0:00:14]}  Rf3 {[%clk 0:00:04]} 61. Ra1 {[%clk 0:00:13]}  Rd3 {[%clk 0:00:04]} 62. Ra6 {[%clk 0:00:14]}  Kf5 {[%clk 0:00:04]} 63. Ra5+ {[%clk 0:00:14]}  Ke4 {[%clk 0:00:05]} 64. Rg5 {[%clk 0:00:14]}  Rd6 {[%clk 0:00:04]} 65. Kg2 {[%clk 0:00:14]}  Ke3 {[%clk 0:00:05]} 66. Kh3 {[%clk 0:00:14]}  Rf6 {[%clk 0:00:05]} 67. Ra5 {[%clk 0:00:13]}  Kf2 {[%clk 0:00:05]} 68. Ra8 {[%clk 0:00:10]}  Kg1 {[%clk 0:00:04]} 69. Ra2 {[%clk 0:00:10]}  Rf2 {[%clk 0:00:04]} 70. Ra1+ {[%clk 0:00:09]}  Rf1 {[%clk 0:00:04]} 71. Ra6 {[%clk 0:00:09]}  Rf2 {[%clk 0:00:04]} 72. Ra1+ {[%clk 0:00:07]}  Rf1 {[%clk 0:00:05]} 73. Rxf1+ {[%clk 0:00:07]}  Kxf1 {[%clk 0:00:05]} 74. g4 {[%clk 0:00:08]}  Kf2 {[%clk 0:00:05]} 75. gxh5 {[%clk 0:00:05]}  gxh5 {[%clk 0:00:06]} 76. Kh2 {[%clk 0:00:06]}  Kf3 {[%clk 0:00:06]} 77. Kh3 {[%clk 0:00:07]}  Kf4 {[%clk 0:00:07]} 78. Kh2 {[%clk 0:00:08]}  Kg4 {[%clk 0:00:08]} 79. Kg2 {[%clk 0:00:08]}  Kxh4 {[%clk 0:00:09]} 80. Kh2 {[%clk 0:00:08]}  Kg4 {[%clk 0:00:09]} 81. Kh1 {[%clk 0:00:09]}  h4 {[%clk 0:00:10]} 82. Kh2 {[%clk 0:00:10]}  h3 {[%clk 0:00:11]} 83. Kh1 {[%clk 0:00:11]}  Kg3 {[%clk 0:00:11]} 84. Kg1 {[%clk 0:00:11]}  Kh4 {[%clk 0:00:11]} 85. Kh1 {[%clk 0:00:12]}  Kg4 {[%clk 0:00:12]} 86. Kg1 {[%clk 0:00:13]}  Kg3 {[%clk 0:00:12]} 87. Kh1 {[%clk 0:00:14]}  Kh4 {[%clk 0:00:12]} 88. Kg1 {[%clk 0:00:14]}  Kg4 {[%clk 0:00:13]} 89. Kh1 {[%clk 0:00:15]}  Kg3 {[%clk 0:00:14]} 90. Kg1 {[%clk 0:00:16]}  h2+ {[%clk 0:00:15]} 91. Kh1 {[%clk 0:00:17]}  Kh3 {[%clk 0:00:16]} 1/2-1/2


[Site "https://www.chess.com"]

[Event "Titled Tuesday Blitz November 22 Late 2022"]
[White "Toniutti, Ezio"]
[Black "Goroshkov, Maksym"]
[WhiteFideId "113034"]
[BlackFideId "14142716"]
[WhiteElo "2215"]
[BlackElo "2257"]
[Result "1-0"]
[Round "07"]
[TimeControl "180+1"]
[Date "2022.11.23"]
[WhiteClock "0:00:22"]
[BlackClock "0:01:09"]

1. d4 {[%clk 0:02:57]}  Nf6 {[%clk 0:02:59]} 2. c4 {[%clk 0:02:56]}  e5 {[%clk 0:02:57]} 3. dxe5 {[%clk 0:02:56]}  Ng4 {[%clk 0:02:58]} 4. Bf4 {[%clk 0:02:56]}  Nc6 {[%clk 0:02:57]} 5. Nf3 {[%clk 0:02:55]}  Bb4+ {[%clk 0:02:58]} 6. Nbd2 {[%clk 0:02:53]}  Qe7 {[%clk 0:02:58]} 7. e3 {[%clk 0:02:50]}  Ngxe5 {[%clk 0:02:58]} 8. Nxe5 {[%clk 0:02:48]}  Nxe5 {[%clk 0:02:59]} 9. Be2 {[%clk 0:02:48]}  d6 {[%clk 0:02:56]} 10. O-O {[%clk 0:02:44]}  Bxd2 {[%clk 0:02:54]} 11. Qxd2 {[%clk 0:02:43]}  O-O {[%clk 0:02:55]} 12. b4 {[%clk 0:02:25]}  b6 {[%clk 0:02:51]} 13. Rfd1 {[%clk 0:02:19]}  Bb7 {[%clk 0:02:51]} 14. a4 {[%clk 0:02:16]}  Qe6 {[%clk 0:02:48]} 15. a5 {[%clk 0:02:09]}  Qg6 {[%clk 0:02:46]} 16. Bg3 {[%clk 0:02:06]}  Rae8 {[%clk 0:02:30]} 17. axb6 {[%clk 0:02:02]}  axb6 {[%clk 0:02:29]} 18. Ra7 {[%clk 0:02:02]}  Qe4 {[%clk 0:02:22]} 19. f3 {[%clk 0:01:56]}  Qc6 {[%clk 0:02:17]} 20. b5 {[%clk 0:01:44]}  Qc5 {[%clk 0:02:03]} 21. Rxb7 {[%clk 0:01:37]}  Nxc4 {[%clk 0:02:02]} 22. Bxc4 {[%clk 0:01:37]}  Qxc4 {[%clk 0:02:03]} 23. Rc1 {[%clk 0:01:33]}  Qxb5 {[%clk 0:02:01]} 24. Rcxc7 {[%clk 0:01:32]}  Ra8 {[%clk 0:01:56]} 25. h4 {[%clk 0:01:17]}  Ra1+ {[%clk 0:01:54]} 26. Rc1 {[%clk 0:01:17]}  Ra3 {[%clk 0:01:37]} 27. Qxd6 {[%clk 0:01:09]}  Rxe3 {[%clk 0:01:35]} 28. Qxf8+ {[%clk 0:00:41]}  Kxf8 {[%clk 0:01:35]} 29. Rc8+ {[%clk 0:00:41]}  Re8 {[%clk 0:01:34]} 30. Bd6+ {[%clk 0:00:39]}  Kg8 {[%clk 0:01:34]} 31. Rxe8+ {[%clk 0:00:36]}  Qxe8 {[%clk 0:01:35]} 32. Rb8 {[%clk 0:00:36]}  Qxb8 {[%clk 0:01:35]} 33. Bxb8 {[%clk 0:00:36]}  f6 {[%clk 0:01:33]} 34. Kf2 {[%clk 0:00:34]}  Kf7 {[%clk 0:01:33]} 35. Ke3 {[%clk 0:00:35]}  Ke6 {[%clk 0:01:33]} 36. Kd4 {[%clk 0:00:35]}  Kf5 {[%clk 0:01:32]} 37. g4+ {[%clk 0:00:34]}  Kg6 {[%clk 0:01:30]} 38. Bd6 {[%clk 0:00:33]}  h5 {[%clk 0:01:27]} 39. Ke4 {[%clk 0:00:31]}  hxg4 {[%clk 0:01:25]} 40. fxg4 {[%clk 0:00:31]}  b5 {[%clk 0:01:24]} 41. Kf4 {[%clk 0:00:30]}  Kf7 {[%clk 0:01:20]} 42. Bb4 {[%clk 0:00:23]}  Ke6 {[%clk 0:01:19]} 43. h5 {[%clk 0:00:22]}  Kf7 {[%clk 0:01:07]} 44. Kf5 {[%clk 0:00:22]}  Kg8 {[%clk 0:01:07]} 45. Kg6 {[%clk 0:00:21]}  Kh8 {[%clk 0:01:07]} 46. Bf8 {[%clk 0:00:21]}  b4 {[%clk 0:01:07]} 47. Bxg7+ {[%clk 0:00:21]}  Kg8 {[%clk 0:01:08]} 48. Bxf6 {[%clk 0:00:21]}  b3 {[%clk 0:01:08]} 49. h6 {[%clk 0:00:21]}  b2 {[%clk 0:01:08]} 50. h7+ {[%clk 0:00:21]}  Kf8 {[%clk 0:01:09]} 51. h8=Q# {[%clk 0:00:22]} 1-0


[Site "https://www.chess.com"]

[Event "Titled Tuesday Blitz November 22 Late 2022"]
[White "Torres Boch, Jose Francisco"]
[Black "D`Arruda, Ricardo D."]
[WhiteFideId "2278383"]
[BlackFideId "100692"]
[WhiteElo "2073"]
[BlackElo "2519"]
[Result "1-0"]
[Round "07"]
[TimeControl "180+1"]
[Date "2022.11.23"]
[WhiteClock "0:00:50"]
[BlackClock "0:01:08"]

1. e4 {[%clk 0:03:00]}  c5 {[%clk 0:02:28]} 2. Nf3 {[%clk 0:02:59]}  Nc6 {[%clk 0:02:27]} 3. d4 {[%clk 0:03:00]}  cxd4 {[%clk 0:02:28]} 4. Nxd4 {[%clk 0:03:00]}  e5 {[%clk 0:02:29]} 5. Nb5 {[%clk 0:02:59]}  a6 {[%clk 0:02:30]} 6. Nd6+ {[%clk 0:02:58]}  Bxd6 {[%clk 0:02:30]} 7. Qxd6 {[%clk 0:02:58]}  Qe7 {[%clk 0:02:31]} 8. Qd1 {[%clk 0:02:55]}  Nf6 {[%clk 0:02:30]} 9. Nc3 {[%clk 0:02:55]}  d6 {[%clk 0:02:31]} 10. Bg5 {[%clk 0:02:51]}  Be6 {[%clk 0:02:31]} 11. Qd2 {[%clk 0:02:49]}  O-O {[%clk 0:02:31]} 12. O-O-O {[%clk 0:02:48]}  Rfd8 {[%clk 0:02:31]} 13. f4 {[%clk 0:02:36]}  exf4 {[%clk 0:02:30]} 14. Qxf4 {[%clk 0:02:36]}  h6 {[%clk 0:02:30]} 15. Bxf6 {[%clk 0:02:35]}  Qxf6 {[%clk 0:02:31]} 16. Qxf6 {[%clk 0:02:34]}  gxf6 {[%clk 0:02:32]} 17. Nd5 {[%clk 0:02:22]}  Bxd5 {[%clk 0:02:31]} 18. Rxd5 {[%clk 0:02:23]}  Ne5 {[%clk 0:02:27]} 19. Be2 {[%clk 0:02:23]}  Kf8 {[%clk 0:02:25]} 20. Rhd1 {[%clk 0:02:10]}  Ke7 {[%clk 0:02:25]} 21. c3 {[%clk 0:02:00]}  Rac8 {[%clk 0:02:25]} 22. Kd2 {[%clk 0:01:58]}  Rg8 {[%clk 0:02:22]} 23. g3 {[%clk 0:01:55]}  h5 {[%clk 0:02:17]} 24. Ke3 {[%clk 0:01:44]}  h4 {[%clk 0:02:17]} 25. g4 {[%clk 0:01:32]}  Rc6 {[%clk 0:02:03]} 26. h3 {[%clk 0:01:30]}  Rg5 {[%clk 0:01:59]} 27. Kf4 {[%clk 0:01:17]}  Ng6+ {[%clk 0:01:55]} 28. Ke3 {[%clk 0:01:13]}  Re5 {[%clk 0:01:54]} 29. R1d4 {[%clk 0:01:07]}  Ke6 {[%clk 0:01:44]} 30. Rb4 {[%clk 0:01:05]}  Ne7 {[%clk 0:01:36]} 31. Rxe5+ {[%clk 0:01:03]}  fxe5 {[%clk 0:01:27]} 32. Rxb7 {[%clk 0:01:00]}  Nc8 {[%clk 0:01:19]} 33. g5 {[%clk 0:00:53]}  d5 {[%clk 0:01:11]} 34. exd5+ {[%clk 0:00:50]}  Kxd5 {[%clk 0:01:08]} 35. Bf3+ {[%clk 0:00:50]} 1-0


[Site "https://www.chess.com"]

[Event "Titled Tuesday Blitz November 22 Late 2022"]
[White "Vargas, Mauricio"]
[Black "Antonova, Nadezhda"]
[WhiteFideId "4404572"]
[BlackFideId "14700182"]
[WhiteElo "2025"]
[BlackElo "1813"]
[Result "0-1"]
[Round "07"]
[TimeControl "180+1"]
[Date "2022.11.23"]
[WhiteClock "0:00:08"]
[BlackClock "0:00:34"]

1. e4 {[%clk 0:03:00]}  c5 {[%clk 0:02:56]} 2. Nc3 {[%clk 0:02:59]}  Nc6 {[%clk 0:02:56]} 3. f4 {[%clk 0:02:58]}  e6 {[%clk 0:02:49]} 4. Nf3 {[%clk 0:02:54]}  d5 {[%clk 0:02:47]} 5. e5 {[%clk 0:02:54]}  Nge7 {[%clk 0:02:42]} 6. g4 {[%clk 0:02:52]}  h5 {[%clk 0:02:38]} 7. g5 {[%clk 0:02:49]}  g6 {[%clk 0:02:35]} 8. Bg2 {[%clk 0:02:45]}  Nf5 {[%clk 0:02:28]} 9. O-O {[%clk 0:02:44]}  Be7 {[%clk 0:02:27]} 10. Ne2 {[%clk 0:02:41]}  h4 {[%clk 0:02:02]} 11. c3 {[%clk 0:02:35]}  b6 {[%clk 0:01:41]} 12. h3 {[%clk 0:02:27]}  Bb7 {[%clk 0:01:38]} 13. Nh2 {[%clk 0:02:21]}  d4 {[%clk 0:01:32]} 14. Ng4 {[%clk 0:02:18]}  d3 {[%clk 0:01:22]} 15. Qa4 {[%clk 0:01:43]}  Qd7 {[%clk 0:01:12]} 16. Re1 {[%clk 0:01:28]}  dxe2 {[%clk 0:01:11]} 17. Rxe2 {[%clk 0:01:26]}  O-O {[%clk 0:01:08]} 18. Nf6+ {[%clk 0:01:15]}  Bxf6 {[%clk 0:01:08]} 19. gxf6 {[%clk 0:01:16]}  c4 {[%clk 0:00:51]} 20. Qxc4 {[%clk 0:00:48]}  Na5 {[%clk 0:00:51]} 21. Qb4 {[%clk 0:00:31]}  Qd3 {[%clk 0:00:51]} 22. Rf2 {[%clk 0:00:17]}  Bxg2 {[%clk 0:00:49]} 23. Rxg2 {[%clk 0:00:17]}  Qxh3 {[%clk 0:00:49]} 24. Qe4 {[%clk 0:00:15]}  Rad8 {[%clk 0:00:45]} 25. d4 {[%clk 0:00:15]}  Ng3 {[%clk 0:00:36]} 26. Qe3 {[%clk 0:00:08]}  Qh1+ {[%clk 0:00:34]} 0-1


[Site "https://www.chess.com"]

[Event "Titled Tuesday Blitz November 22 Late 2022"]
[White "Walentukiewicz, Michal"]
[Black "Kleiman, Jake"]
[WhiteFideId "1126903"]
[BlackFideId "2020041"]
[WhiteElo "2026"]
[BlackElo "2614"]
[Result "0-1"]
[Round "07"]
[TimeControl "180+1"]
[Date "2022.11.23"]
[WhiteClock "0:00:33"]
[BlackClock "0:00:09"]

1. g3 {[%clk 0:03:00]}  d5 {[%clk 0:02:59]} 2. Bg2 {[%clk 0:03:01]}  e6 {[%clk 0:03:00]} 3. c4 {[%clk 0:03:01]}  Nf6 {[%clk 0:03:00]} 4. cxd5 {[%clk 0:03:02]}  exd5 {[%clk 0:03:00]} 5. Nf3 {[%clk 0:03:03]}  Be7 {[%clk 0:03:00]} 6. O-O {[%clk 0:03:04]}  O-O {[%clk 0:02:58]} 7. d3 {[%clk 0:03:05]}  Bg4 {[%clk 0:02:50]} 8. Nc3 {[%clk 0:03:05]}  Nc6 {[%clk 0:02:41]} 9. e4 {[%clk 0:03:05]}  dxe4 {[%clk 0:02:39]} 10. dxe4 {[%clk 0:03:06]}  Bb4 {[%clk 0:02:31]} 11. h3 {[%clk 0:03:03]}  Qxd1 {[%clk 0:02:18]} 12. Rxd1 {[%clk 0:03:02]}  Bxf3 {[%clk 0:02:18]} 13. Bxf3 {[%clk 0:03:02]}  Bxc3 {[%clk 0:02:14]} 14. bxc3 {[%clk 0:03:02]}  Rfe8 {[%clk 0:02:11]} 15. Re1 {[%clk 0:02:54]}  Ne5 {[%clk 0:02:08]} 16. Kg2 {[%clk 0:02:53]}  Rad8 {[%clk 0:01:47]} 17. Bg5 {[%clk 0:02:52]}  Nxf3 {[%clk 0:01:43]} 18. Kxf3 {[%clk 0:02:52]}  Rd3+ {[%clk 0:01:39]} 19. Kg2 {[%clk 0:02:52]}  Nxe4 {[%clk 0:01:35]} 20. f3 {[%clk 0:02:45]}  Nd6 {[%clk 0:01:32]} 21. Rxe8+ {[%clk 0:02:42]}  Nxe8 {[%clk 0:01:33]} 22. Re1 {[%clk 0:02:42]}  Nd6 {[%clk 0:01:25]} 23. c4 {[%clk 0:02:21]}  f6 {[%clk 0:01:22]} 24. Bf4 {[%clk 0:02:20]}  Kf7 {[%clk 0:01:11]} 25. c5 {[%clk 0:02:16]}  Ne8 {[%clk 0:01:07]} 26. Rb1 {[%clk 0:02:06]}  b6 {[%clk 0:01:04]} 27. cxb6 {[%clk 0:02:01]}  axb6 {[%clk 0:01:04]} 28. Rc1 {[%clk 0:02:01]}  c5 {[%clk 0:01:04]} 29. Rb1 {[%clk 0:02:00]}  g5 {[%clk 0:01:04]} 30. Bb8 {[%clk 0:01:44]}  Rd2+ {[%clk 0:01:02]} 31. Kf1 {[%clk 0:01:44]}  Rxa2 {[%clk 0:01:00]} 32. Rxb6 {[%clk 0:01:45]}  h5 {[%clk 0:00:56]} 33. Rb7+ {[%clk 0:01:44]}  Kg6 {[%clk 0:00:54]} 34. h4 {[%clk 0:01:42]}  gxh4 {[%clk 0:00:51]} 35. gxh4 {[%clk 0:01:42]}  Ng7 {[%clk 0:00:51]} 36. Rc7 {[%clk 0:01:40]}  Rc2 {[%clk 0:00:49]} 37. Ba7 {[%clk 0:01:38]}  c4 {[%clk 0:00:48]} 38. Rc6 {[%clk 0:01:38]}  Nf5 {[%clk 0:00:47]} 39. Bb8 {[%clk 0:01:34]}  Kf7 {[%clk 0:00:41]} 40. Rc5 {[%clk 0:01:32]}  Ke6 {[%clk 0:00:39]} 41. Rc6+ {[%clk 0:01:32]}  Kf7 {[%clk 0:00:37]} 42. Rc7+ {[%clk 0:01:31]}  Kg6 {[%clk 0:00:36]} 43. Rc6 {[%clk 0:01:31]}  Ne3+ {[%clk 0:00:34]} 44. Ke1 {[%clk 0:01:28]}  Kf5 {[%clk 0:00:31]} 45. Rc5+ {[%clk 0:01:27]}  Kg6 {[%clk 0:00:31]} 46. Rc6 {[%clk 0:01:27]}  Nd5 {[%clk 0:00:29]} 47. Rc5 {[%clk 0:01:23]}  Nb4 {[%clk 0:00:27]} 48. Kd1 {[%clk 0:01:21]}  Nd3 {[%clk 0:00:24]} 49. Rc6 {[%clk 0:00:59]}  Rg2 {[%clk 0:00:20]} 50. Ba7 {[%clk 0:00:52]}  Ne5 {[%clk 0:00:18]} 51. Rc7 {[%clk 0:00:38]}  Kf5 {[%clk 0:00:11]} 52. Bd4 {[%clk 0:00:36]}  Nxf3 {[%clk 0:00:10]} 53. Rxc4 {[%clk 0:00:33]}  Rd2+ {[%clk 0:00:08]} 54. Kc1 {[%clk 0:00:32]}  Rxd4 {[%clk 0:00:09]} 55. Rc5+ {[%clk 0:00:32]}  Kg4 {[%clk 0:00:09]} 56. Rxh5 {[%clk 0:00:33]}  Kxh5 {[%clk 0:00:09]} 0-1


[Site "https://www.chess.com"]